fUSD/lending_fUSD_20240517
["ID","MTS","AMOUNT","RATE_DAILY","PERIOD"]
[327315427,1715980272657,-2138.5020044,0.00035,7]
[327315428,1715980272667,-381.90220732,0.00035,2]
[327315429,1715980272677,-30000.0,0.00035,60]
[327315430,1715980272688,-15866.15,0.00035,2]
[327315431,1715980272698,-19790.45228935,0.00035,30]
[327315432,1715980272707,-1000.0,0.00035,120]
[327315433,1715980272718,-5000.0,0.00035,30]
[327315434,1715980272728,-3309.2289142,0.00035,4]
[327315435,1715980272737,-150.0,0.00035,120]
[327315436,1715980272746,-1000.0,0.00035,14]
[327315437,1715980272756,-185.232333,0.00035,7]
[327315438,1715980272765,-1000.0,0.00035,14]
[327315439,1715980272774,-185.232333,0.00035,7]
[327315440,1715980272784,-151.0,0.00035,7]
[327315441,1715980272793,-280.0,0.00035,7]
[327315442,1715980272803,-900.0,0.00035,36]
[327315443,1715980272812,-10000.0,0.00035,10]
[327315444,1715980272821,-450.0,0.0003502,30]
[327315445,1715980272830,-450.0,0.0003502,30]
[327315446,1715980272839,-450.0,0.0003502,30]
[327315447,1715980272849,-3000.0,0.0003508,2]
[327315448,1715980272859,-294.37,0.000351,7]
[327315449,1715980272869,-1000.0,0.000351,7]
[327315450,1715980272884,-1000.0,0.000351,7]
[327315451,1715980272893,-1000.0,0.00035118,14]
[327315452,1715980272902,-300.0,0.00035141,120]
[327315453,1715980272911,-471.051805,0.00035148,36]
[327315454,1715980272922,-2954.0,0.000352,2]
[327315455,1715980272931,-4045.75892456,0.00035211,7]
[327315456,1715980272940,-37800.0,0.000353,120]
[327315457,1715980272949,-3000.0,0.000353,2]
[327315458,1715980272959,-150.0,0.00035328,2]
[327315459,1715980272967,-1000.0,0.00035367,14]
[327315460,1715980272977,-471.051805,0.00035448,36]
[327315461,1715980272986,-443.0,0.000355,5]
[327315462,1715980272995,-5000.0,0.00035575,10]
[327315463,1715980273005,-5000.0,0.00035582,10]
[327315464,1715980273014,-998.41929583,0.000356,30]
[327315465,1715980273023,-535.0,0.000356,2]
[327315466,1715980273032,-200.0,0.00035616,30]
[327315467,1715980273042,-1000.0,0.00035616,30]
[327315468,1715980273051,-227.65989968,0.0003569,2]
[327315469,1715980273060,-382.0,0.00035747,3]
[327315470,1715980273069,-314.051805,0.00035748,36]
[327315471,1715980273079,-300.0,0.0003578,120]
[327315472,1715980273088,-1738.647728,0.00035795,2]
[327315473,1715980273097,-5000.0,0.00035824,10]
[327315474,1715980273106,-5000.0,0.00035827,10]
[327315475,1715980273115,-5000.0,0.00035848,10]
[327315476,1715980273126,-1000.0,0.00035866,30]
[327315477,1715980273135,-50000.0,0.00036,26]
[327315478,1715980273144,-150.0,0.00036,2]
[327315479,1715980273153,-1750.0,0.00036,80]
[327315480,1715980273162,-900.0,0.00036,37]
[327315481,1715980273171,-500.0,0.00036,120]
[327315482,1715980273181,-1000000.0,0.00036,30]
[327315483,1715980273190,-206.0,0.00036,2]
[327315484,1715980273200,-185.232333,0.00036,7]
[327315485,1715980273209,-185.232327,0.00036,7]
[327315486,1715980273218,-151.0,0.00036,7]
[327315487,1715980273228,-150.0,0.00036049,2]
[327315488,1715980273237,-1001.51,0.000361,7]
[327315489,1715980273247,-1000.0,0.00036115,30]
[327315490,1715980273256,-471.051805,0.00036148,38]
[327315491,1715980273266,-500.0,0.00036164,2]
[327315492,1715980273275,-157.49,0.00036339,2]
[327315493,1715980273285,-1000.0,0.00036364,30]
[327315494,1715980273295,-300.0,0.00036418,120]
[327315495,1715980273304,-471.051805,0.00036448,38]
[327315496,1715980273313,-297.3,0.00036555,2]
[327315497,1715980273322,-1000.0,0.00036613,30]
[327315498,1715980273331,-1182.35632631,0.00036688,7]
[327315499,1715980273341,-314.051805,0.00036748,38]
[327315500,1715980273350,-150.0,0.0003677,2]
[327315501,1715980273359,-150.0,0.00036773,5]
[327315502,1715980273369,-1000.0,0.00036862,30]
[327315503,1715980273380,-1182.35632631,0.00036883,7]
[327315504,1715980273389,-5029.97423953,0.000369,30]
[327315505,1715980273398,-1186.19,0.0003698,15]
[327315506,1715980273407,-982.49,0.0003698,15]
[327315507,1715980273417,-356.07,0.00036986,2]
[327315508,1715980273426,-1185.0,0.0003699,15]
[327315509,1715980273436,-982.0,0.0003699,15]
[327315510,1715980273445,-50000.0,0.00037,27]
[327315511,1715980273454,-1000.0,0.00037,4]
[327315512,1715980273463,-909.67142071,0.00037,2]
[327315513,1715980273472,-200.0,0.00037,2]
[327315514,1715980273481,-500.0,0.00037,120]
[327315515,1715980273490,-557.38228373,0.00037,30]
[327315516,1715980273499,-1000.0,0.00037,10]
[327315517,1715980273508,-900.0,0.00037,38]
[327315518,1715980273517,-1097.2786714,0.00037,30]
[327315519,1715980273526,-10000.0,0.00037,18]
[327315520,1715980273535,-5000.0,0.00037,30]
[327315521,1715980273544,-792.91132423,0.00037,2]
[327315522,1715980273557,-577.81986021,0.00037057,120]
[327315523,1715980273566,-2000.0,0.000371,7]
[327315524,1715980273577,-1000.0,0.00037111,30]
[327315525,1715980273588,-471.051805,0.00037148,40]
[327315526,1715980273598,-1182.35632631,0.00037198,7]
[327315527,1715980273608,-1002.75,0.0003728,15]
[327315528,1715980273618,-1000.0,0.0003736,30]
[327315529,1715980273629,-471.051805,0.00037448,40]
[327315530,1715980273638,-150.0,0.00037491,2]
[327315531,1715980273649,-220453.78989817,0.00037499,7]
[327315532,1715980273659,-543104.4388531,0.00037499,7]
[327315533,1715980273668,-1000.0,0.000375,4]
[327315534,1715980273677,-450.0,0.000375,30]
[327315535,1715980273687,-1000000.0,0.000375,30]
[327315536,1715980273698,-4045.75892456,0.00037509,10]
[327315537,1715980273709,-3000.0,0.0003758,2]
[327315538,1715980273718,-4100.8270678,0.0003759,2]
[327315539,1715980273728,-1150000.0,0.000376,2]
[327315540,1715980273738,-1000.0,0.00037609,30]
[327315541,1715980273748,-2471.70914707,0.000377,4]
[327315542,1715980273757,-314.051805,0.00037748,40]
[327315543,1715980273767,-164.42379971,0.000378,2]
[327315544,1715980273774,-1000.0,0.00037858,30]
[327315545,1715980273781,-5000.0,0.000379,30]
[327315546,1715980273788,-500.0,0.000379,13]
[327315547,1715980273795,-2633.3772493,0.00037974,2]
[327315548,1715980273802,-15750.00773,0.00037974,2]
[327315549,1715980273809,-681.845731,0.00037974,2]
[327315550,1715980273815,-2045.0772083,0.00037974,2]
[327315551,1715980273821,-196.14114234,0.00037999,120]
[327315552,1715980273828,-50000.0,0.00038,28]
[327315553,1715980273834,-220.32148342,0.00038,60]
[327315554,1715980273841,-38990.0,0.00038,5]
[327315555,1715980273850,-15109.999999,0.00038,12]
[327315556,1715980273859,-1000000.0,0.00038,35]
[327315557,1715980273868,-900.0,0.00038,39]
[327315558,1715980273883,-364.87730925,0.00038,120]
[327315559,1715980273892,-1067.0,0.00038,120]
[327315560,1715980273902,-1300.0,0.00038,120]
[327315561,1715980273912,-53618.02746928,0.00038,30]
[327315562,1715980273921,-2000.0,0.00038,30]
[327315563,1715980273932,-1000000.0,0.00038,30]
[327315564,1715980273942,-3000.0,0.000381,2]
[327315565,1715980273954,-1000.0,0.00038107,30]
[327315566,1715980273963,-314.051805,0.00038148,38]
[327315567,1715980273972,-2328.0,0.0003815,120]
[327315568,1715980273982,-283.97820169,0.00038183,2]
[327315569,1715980273993,-150.0,0.00038212,2]
[327315570,1715980274002,-40000.0,0.000383,120]
[327315571,1715980274012,-500.0,0.00038356,2]
[327315572,1715980274022,-500.0,0.00038356,2]
[327315573,1715980274031,-500.0,0.00038356,2]
[327315574,1715980274041,-500.0,0.00038356,2]
[327315575,1715980274050,-500.0,0.00038356,2]
[327315576,1715980274059,-500.0,0.00038356,2]
[327315577,1715980274069,-500.0,0.00038356,2]
[327315578,1715980274078,-500.0,0.00038356,2]
[327315579,1715980274087,-500.0,0.00038356,2]
[327315580,1715980274097,-286.29237037,0.00038356,2]
[327315581,1715980274106,-2000.0,0.00038356,120]
[327315582,1715980274115,-2000.0,0.00038356,120]
[327315583,1715980274126,-2000.0,0.00038356,120]
[327315584,1715980274135,-2000.0,0.00038356,120]
[327315585,1715980274144,-2000.0,0.00038356,120]
[327315586,1715980274154,-2000.0,0.00038356,120]
[327315587,1715980274163,-2000.0,0.00038356,120]
[327315588,1715980274173,-2000.0,0.00038356,120]
[327315589,1715980274185,-2000.0,0.00038356,120]
[327315590,1715980274195,-2000.0,0.00038356,120]
[327315591,1715980274206,-2000.0,0.00038356,120]
[327315592,1715980274217,-2029.41148741,0.00038356,120]
[327315593,1715980274227,-249.81021677,0.00038356,30]
[327315594,1715980274238,-163.59,0.00038356,2]
[327315595,1715980274248,-1000.0,0.00038356,30]
[327315596,1715980274257,-1000.0,0.000384,2]
[327315597,1715980274267,-750.79293817,0.000384,2]
[327315598,1715980274276,-200.0,0.000384,2]
[327315599,1715980274325,-2000.0,0.000384,2]
[327315600,1715980274335,-319.91448357,0.000384,2]
[327315601,1715980274344,-535.58236012,0.000384,2]
[327315602,1715980274353,-1010000.0,0.0003844,30]
[327315603,1715980274363,-314.051805,0.00038448,38]
[327315604,1715980274372,-11186.0,0.00038514,8]
[327315605,1715980274382,-1000.0,0.00038605,30]
[327315606,1715980274391,-117651.44262619,0.00038651,7]
[327315607,1715980274400,-11115.55554279,0.00038651,7]
[327315608,1715980274409,-314.051805,0.00038748,40]
[327315609,1715980274418,-297.3,0.00038819,2]
[327315610,1715980274428,-1000.0,0.00038854,30]
[327315611,1715980274436,-151.0,0.00038874,2]
[327315612,1715980274446,-500.0,0.0003889,20]
[327315613,1715980274455,-884.59609558,0.000389,30]
[327315614,1715980274464,-150.0,0.00038933,2]
[327315615,1715980274474,-50000.0,0.00039,29]
[327315616,1715980274482,-3982.63958072,0.00039,2]
[327315617,1715980274491,-1162.35871981,0.00039,2]
[327315618,1715980274502,-10000.000001,0.00039,2]
[327315619,1715980274511,-30718.88397101,0.00039,3]
[327315620,1715980274520,-151.26202987,0.00039,10]
[327315621,1715980274529,-132416.65448583,0.00039,10]
[327315622,1715980274538,-1000.0,0.00039,120]
[327315623,1715980274547,-1000.0,0.00039,15]
[327315624,1715980274556,-12036.0,0.00039,30]
[327315625,1715980274566,-847.04678,0.00039,120]
[327315626,1715980274575,-18722.01813246,0.00039,2]
[327315627,1715980274585,-5578.21785019,0.00039,120]
[327315628,1715980274594,-150000.0,0.00039,14]
[327315629,1715980274603,-500000.0,0.00039,30]
[327315630,1715980274612,-2000.0,0.00039,30]
[327315631,1715980274622,-979.78265975,0.00039,10]
[327315632,1715980274632,-206.0,0.00039,2]
[327315633,1715980274641,-1182.35632631,0.00039096,7]
[327315634,1715980274650,-1000.0,0.00039103,30]
[327315635,1715980274660,-314.051805,0.00039148,42]
[327315636,1715980274669,-1000.0,0.00039352,30]
[327315637,1715980274678,-210.78443908,0.00039364,11]
[327315638,1715980274688,-562.93898406,0.000394,30]
[327315639,1715980274697,-1000000.0,0.000394,30]
[327315640,1715980274707,-45000.0,0.000394,30]
[327315641,1715980274716,-314.051805,0.00039448,42]
[327315642,1715980274725,-30464.84277027,0.000395,35]
[327315643,1715980274734,-107075.08313115,0.00039588,3]
[327315644,1715980274743,-1000.0,0.00039601,30]
[327315645,1715980274753,-150.0,0.00039654,2]
[327315646,1715980274762,-1000.0,0.00039748,45]
[327315647,1715980274771,-314.051805,0.00039748,42]
[327315648,1715980274781,-749.7944789,0.00039773,2]
[327315649,1715980274791,-2248.8776127,0.00039773,2]
[327315650,1715980274801,-231266.44470986,0.000398,33]
[327315651,1715980274810,-704.4255,0.00039808,7]
[327315652,1715980274819,-959.8574277,0.0003984,10]
[327315653,1715980274828,-1000.0,0.00039851,30]
[327315654,1715980274838,-15000.0,0.0003987,18]
[327315655,1715980274847,-519.62,0.0003987,2]
[327315656,1715980274857,-877.98,0.0003987,2]
[327315657,1715980274867,-487.0857,0.00039888,7]
[327315658,1715980274879,-403.10170278,0.000399,30]
[327315659,1715980274889,-1381.0,0.000399,14]
[327315660,1715980274900,-2895.8041866,0.00039972,2]
[327315661,1715980274910,-17319.5611589,0.00039972,2]
[327315662,1715980274922,-452.86140135,0.0003998,30]
[327315663,1715980274931,-584.32201407,0.0003998,30]
[327315664,1715980274941,-765.32102869,0.0003998,30]
[327315665,1715980274953,-3276.8829581,0.0003999,2]
[327315666,1715980274965,-188.96931271,0.00039999,31]
[327315667,1715980274976,-500.0,0.00039999,31]
[327315668,1715980274986,-500.0,0.00039999,31]
[327315669,1715980274997,-500.0,0.00039999,31]
[327315670,1715980275007,-433.08063063,0.00039999,31]
[327315671,1715980275017,-500.0,0.00039999,31]
[327315672,1715980275028,-500.0,0.00039999,31]
[327315673,1715980275039,-500.0,0.00039999,31]
[327315674,1715980275049,-500.0,0.00039999,31]
[327315675,1715980275058,-500.0,0.00039999,31]
[327315676,1715980275068,-579.11608843,0.00039999,31]
[327315677,1715980275077,-500.0,0.00039999,31]
[327315678,1715980275087,-344.23907791,0.00039999,31]
[327315679,1715980275098,-500.0,0.00039999,31]
[327315680,1715980275109,-500.0,0.00039999,31]
[327315681,1715980275121,-500.0,0.00039999,31]
[327315682,1715980275130,-246.65554804,0.00039999,31]
[327315683,1715980275140,-500.0,0.00039999,31]
[327315684,1715980275149,-500.0,0.00039999,31]
[327315685,1715980275159,-260.52147147,0.00039999,31]
[327315686,1715980275168,-500.0,0.00039999,31]
[327315687,1715980275178,-500.0,0.00039999,31]
[327315688,1715980275189,-500.0,0.00039999,31]
[327315689,1715980275197,-500.0,0.00039999,31]
[327315690,1715980275207,-500.0,0.00039999,31]
[327315691,1715980275216,-500.0,0.00039999,31]
[327315692,1715980275225,-544.77275653,0.00039999,31]
[327315693,1715980275234,-500.0,0.00039999,31]
[327315694,1715980275244,-500.0,0.00039999,31]
[327315695,1715980275252,-500.0,0.00039999,31]
[327315696,1715980275262,-290.92839633,0.00039999,31]
[327315697,1715980275271,-544.77275653,0.00039999,31]
[327315698,1715980275281,-564.60420634,0.00039999,31]
[327315699,1715980275290,-500.0,0.00039999,31]
[327315700,1715980275300,-500.0,0.00039999,31]
[327315701,1715980275309,-544.77275653,0.00039999,31]
[327315702,1715980275319,-330.55737839,0.00039999,31]
[327315703,1715980275329,-500.0,0.00039999,31]
[327315704,1715980275339,-282.73271426,0.00039999,31]
[327315705,1715980275348,-500.0,0.00039999,31]
[327315706,1715980275357,-500.0,0.00039999,31]
[327315707,1715980275368,-500.0,0.00039999,31]
[327315708,1715980275379,-544.77275653,0.00039999,31]
[327315709,1715980275390,-544.77275653,0.00039999,31]
[327315710,1715980275400,-500.0,0.00039999,31]
[327315711,1715980275410,-544.77275653,0.00039999,31]
[327315712,1715980275419,-544.77275653,0.00039999,31]
[327315713,1715980275429,-544.77275653,0.00039999,31]
[327315714,1715980275438,-215.79856656,0.00039999,31]
[327315715,1715980275448,-250.0,0.00039999,31]
[327315716,1715980275458,-500.0,0.00039999,31]
[327315717,1715980275468,-500.0,0.00039999,31]
[327315718,1715980275478,-1754.25565765,0.00039999,31]
[327315719,1715980275489,-500.0,0.00039999,31]
[327315720,1715980275498,-500.0,0.00039999,31]
[327315721,1715980275507,-620.0,0.00039999,31]
[327315722,1715980275517,-500.0,0.00039999,31]
[327315723,1715980275527,-500.0,0.00039999,31]
[327315724,1715980275537,-150.0,0.00039999,31]
[327315725,1715980275546,-1754.25565765,0.00039999,31]
[327315726,1715980275556,-50000.0,0.0004,20]
[327315727,1715980275566,-50000.0,0.0004,30]
[327315728,1715980275575,-22180.56492914,0.0004,4]
[327315729,1715980275584,-193.46434849,0.0004,2]
[327315730,1715980275593,-155.0,0.0004,4]
[327315731,1715980275603,-1806.47773037,0.0004,4]
[327315732,1715980275612,-558.65461173,0.0004,4]
[327315733,1715980275622,-16858.87562594,0.0004,5]
[327315734,1715980275632,-1501.68266147,0.0004,2]
[327315735,1715980275641,-619.96533109,0.0004,2]
[327315736,1715980275651,-370.28227826,0.0004,2]
[327315737,1715980275661,-172.43781856,0.0004,7]
[327315738,1715980275671,-10000.0,0.0004,2]
[327315739,1715980275680,-3000.0,0.0004,9]
[327315740,1715980275690,-800.0,0.0004,7]
[327315741,1715980275700,-306.09039942,0.0004,4]
[327315742,1715980275709,-394.13313258,0.0004,7]
[327315743,1715980275719,-1359.56719139,0.0004,5]
[327315744,1715980275729,-2439.49568557,0.0004,7]
[327315745,1715980275738,-8025.23772572,0.0004,7]
[327315746,1715980275748,-703.56,0.0004,2]
[327315747,1715980275758,-200.0,0.0004,2]
[327315748,1715980275767,-1024.20088812,0.0004,4]
[327315749,1715980275777,-3578.56779936,0.0004,20]
[327315750,1715980275786,-1296.881476,0.0004,10]
[327315751,1715980275797,-180281.36321772,0.0004,14]
[327315752,1715980275806,-195.29626012,0.0004,120]
[327315753,1715980275816,-157.13570472,0.0004,4]
[327315754,1715980275826,-1367.78312534,0.0004,120]
[327315755,1715980275835,-2175.94596224,0.0004,120]
[327315756,1715980275845,-1302.34356124,0.0004,30]
[327315757,1715980275855,-1002.90731566,0.0004,120]
[327315758,1715980275864,-273.02771254,0.0004,120]
[327315759,1715980275875,-2597.41727942,0.0004,120]
[327315760,1715980275887,-251.16623881,0.0004,30]
[327315761,1715980275897,-3000.0,0.0004,90]
[327315762,1715980275907,-2500.0,0.0004,60]
[327315763,1715980275916,-300.11588902,0.0004,30]
[327315764,1715980275927,-1000.0,0.0004,120]
[327315765,1715980275936,-1550.0,0.0004,120]
[327315766,1715980275946,-477.12749073,0.0004,30]
[327315767,1715980275958,-2882.92114562,0.0004,30]
[327315768,1715980275969,-42624.20030966,0.0004,2]
[327315769,1715980275978,-500.0,0.0004,120]
[327315770,1715980275988,-18139.75045148,0.0004,3]
[327315771,1715980275997,-2110.0,0.0004,15]
[327315772,1715980276007,-10000.0,0.0004,12]
[327315773,1715980276017,-200.0,0.0004,30]
[327315774,1715980276027,-2020.03,0.0004,120]
[327315775,1715980276037,-714.48559869,0.0004,30]
[327315776,1715980276047,-244.34237236,0.0004,15]
[327315777,1715980276057,-1000000.0,0.0004,30]
[327315778,1715980276067,-288.35188052,0.0004,120]
[327315779,1715980276077,-310.9206281,0.0004,30]
[327315780,1715980276087,-300.0,0.0004,30]
[327315781,1715980276097,-300.0,0.0004,30]
[327315782,1715980276106,-300.0,0.0004,30]
[327315783,1715980276116,-400.0,0.0004,30]
[327315784,1715980276127,-342.0,0.0004,30]
[327315785,1715980276137,-1755.8208252,0.0004,120]
[327315786,1715980276147,-890.0,0.0004,15]
[327315787,1715980276156,-176.94,0.0004,120]
[327315788,1715980276166,-300.00673,0.0004,120]
[327315789,1715980276175,-98686.63560328,0.0004,14]
[327315790,1715980276185,-1589.2277723,0.0004,120]
[327315791,1715980276194,-165.45574192,0.0004,2]
[327315792,1715980276203,-512.44,0.0004,120]
[327315793,1715980276213,-270216.02413311,0.0004,30]
[327315794,1715980276222,-1887.09654823,0.0004,120]
[327315795,1715980276233,-3894.90325559,0.0004,2]
[327315796,1715980276243,-76864.36667898,0.0004,10]
[327315797,1715980276253,-920.11918367,0.0004,120]
[327315798,1715980276265,-296.0,0.0004,30]
[327315799,1715980276275,-500000.0,0.0004,40]
[327315800,1715980276286,-2000.0,0.0004,40]
[327315801,1715980276295,-2000.0,0.0004,40]
[327315802,1715980276306,-1501.37183699,0.0004,60]
[327315803,1715980276317,-82626.90205612,0.0004,30]
[327315804,1715980276327,-62334.52048163,0.0004,30]
[327315805,1715980276336,-5000.0,0.0004,120]
[327315806,1715980276347,-2295.5923664,0.0004,90]
[327315807,1715980276357,-500.0,0.0004,30]
[327315808,1715980276368,-775.0,0.0004,30]
[327315809,1715980276379,-2000.0,0.0004,5]
[327315810,1715980276388,-2000.0,0.0004,5]
[327315811,1715980276398,-2000.0,0.0004,30]
[327315812,1715980276410,-150.19158462,0.0004,120]
[327315813,1715980276420,-5000.0,0.0004,3]
[327315814,1715980276430,-2000.0,0.0004,5]
[327315815,1715980276440,-2000.0,0.0004,5]
[327315816,1715980276450,-1860.34240948,0.0004,2]
[327315817,1715980276460,-2000.0,0.0004,5]
[327315818,1715980276470,-1314.10790711,0.0004,15]
[327315819,1715980276480,-1584.12,0.0004,120]
[327315820,1715980276490,-812.68,0.0004,7]
[327315821,1715980276499,-678.34,0.0004,7]
[327315822,1715980276509,-718.17,0.0004,7]
[327315823,1715980276520,-845.61,0.0004,120]
[327315824,1715980276529,-2000.0,0.0004,5]
[327315825,1715980276539,-104191.36948934,0.0004,2]
[327315826,1715980276548,-311.27960678,0.0004001,30]
[327315827,1715980276558,-3000.0,0.0004008,2]
[327315828,1715980276567,-1000.0,0.000401,30]
[327315829,1715980276577,-314.051805,0.00040148,40]
[327315830,1715980276587,-1182.35632631,0.00040162,30]
[327315831,1715980276596,-168.12797454,0.000402,120]
[327315832,1715980276606,-168.12797454,0.000402,120]
[327315833,1715980276615,-704.4255,0.00040208,7]
[327315834,1715980276625,-1002.75,0.00040269,15]
[327315835,1715980276634,-60626.44640362,0.0004033,6]
[327315836,1715980276643,-1000.0,0.00040349,30]
[327315837,1715980276653,-150.0,0.00040375,2]
[327315838,1715980276662,-300000.0,0.000404,30]
[327315839,1715980276672,-314.051805,0.00040448,40]
[327315840,1715980276681,-180.46813106,0.0004048,12]
[327315841,1715980276690,-250.0,0.0004048,13]
[327315842,1715980276699,-544.16618492,0.0004048,60]
[327315843,1715980276709,-2110.0,0.000405,15]
[327315844,1715980276718,-5000.0,0.000405,30]
[327315845,1715980276727,-1000.0,0.00040598,30]
[327315846,1715980276736,-314.051805,0.00040748,40]
[327315847,1715980276745,-3000.0,0.000408,2]
[327315848,1715980276755,-28972.5710486,0.000408,60]
[327315849,1715980276764,-1000.0,0.00040847,30]
[327315850,1715980276774,-656.91708877,0.0004088,120]
[327315851,1715980276783,-1182.35632631,0.00040881,30]
[327315852,1715980276792,-1441.44667637,0.0004097,120]
[327315853,1715980276801,-150.0,0.0004098,10]
[327315854,1715980276811,-1254.1523486,0.00040993,120]
[327315855,1715980276819,-50000.0,0.00041,21]
[327315856,1715980276828,-50000.0,0.00041,31]
[327315857,1715980276838,-1500.0,0.00041,15]
[327315858,1715980276847,-500.0,0.00041,120]
[327315859,1715980276856,-1000.0,0.00041,15]
[327315860,1715980276865,-2110.0,0.00041,15]
[327315861,1715980276879,-700.0,0.00041,120]
[327315862,1715980276889,-485.65571761,0.00041,60]
[327315863,1715980276898,-4270.0,0.00041,120]
[327315864,1715980276907,-267.1,0.00041,120]
[327315865,1715980276917,-10000.0,0.00041,60]
[327315866,1715980276926,-500000.0,0.00041,40]
[327315867,1715980276936,-390841.14097509,0.00041,60]
[327315868,1715980276945,-2000.0,0.00041,30]
[327315869,1715980276955,-3113.3186188,0.00041041,120]
[327315870,1715980276966,-1182.35632631,0.00041045,30]
[327315871,1715980276976,-297.3,0.00041083,2]
[327315872,1715980276985,-2000.0,0.00041095,30]
[327315873,1715980276995,-2000.0,0.00041095,30]
[327315874,1715980277004,-2000.0,0.00041095,30]
[327315875,1715980277014,-2000.0,0.00041095,30]
[327315876,1715980277024,-2000.0,0.00041095,30]
[327315877,1715980277034,-2000.0,0.00041095,30]
[327315878,1715980277043,-2000.0,0.00041095,30]
[327315879,1715980277053,-2000.0,0.00041095,30]
[327315880,1715980277063,-2000.0,0.00041095,30]
[327315881,1715980277072,-2000.0,0.00041095,30]
[327315882,1715980277082,-2000.0,0.00041095,30]
[327315883,1715980277092,-2000.0,0.00041095,30]
[327315884,1715980277103,-2000.0,0.00041095,30]
[327315885,1715980277112,-2000.0,0.00041095,30]
[327315886,1715980277122,-2000.0,0.00041095,30]
[327315887,1715980277133,-2000.0,0.00041095,30]
[327315888,1715980277142,-2000.0,0.00041095,30]
[327315889,1715980277151,-2000.0,0.00041095,30]
[327315890,1715980277160,-2000.0,0.00041095,30]
[327315891,1715980277169,-2000.0,0.00041095,30]
[327315892,1715980277178,-1529.88369253,0.00041095,30]
[327315893,1715980277187,-3000.0,0.00041095,90]
[327315894,1715980277197,-3000.0,0.00041095,90]
[327315895,1715980277206,-3000.0,0.00041095,90]
[327315896,1715980277215,-3000.0,0.00041095,90]
[327315897,1715980277225,-3000.0,0.00041095,90]
[327315898,1715980277234,-3000.0,0.00041095,90]
[327315899,1715980277243,-3000.0,0.00041095,90]
[327315900,1715980277253,-3000.0,0.00041095,90]
[327315901,1715980277262,-3000.0,0.00041095,90]
[327315902,1715980277271,-3000.0,0.00041095,90]
[327315903,1715980277280,-3000.0,0.00041095,90]
[327315904,1715980277289,-3000.0,0.00041095,90]
[327315905,1715980277298,-3000.0,0.00041095,90]
[327315906,1715980277307,-3000.0,0.00041095,90]
[327315907,1715980277316,-1169.99314369,0.00041095,90]
[327315908,1715980277325,-500.0,0.00041095,2]
[327315909,1715980277335,-631.51841359,0.00041095,2]
[327315910,1715980277344,-1000.0,0.00041095,30]
[327315911,1715980277354,-1000.0,0.00041095,30]
[327315912,1715980277364,-1000.0,0.00041095,30]
[327315913,1715980277374,-1000.0,0.00041095,30]
[327315914,1715980277384,-1000.0,0.00041095,30]
[327315915,1715980277393,-1000.0,0.00041095,30]
[327315916,1715980277403,-1000.0,0.00041095,30]
[327315917,1715980277412,-1000.0,0.00041095,30]
[327315918,1715980277422,-786.47889793,0.00041095,30]
[327315919,1715980277432,-600.0,0.00041095,15]
[327315920,1715980277442,-600.0,0.00041095,15]
[327315921,1715980277451,-600.0,0.00041095,15]
[327315922,1715980277462,-600.0,0.00041095,15]
[327315923,1715980277472,-600.0,0.00041095,15]
[327315924,1715980277482,-591.23478905,0.00041095,15]
[327315925,1715980277493,-510.0,0.00041095,120]
[327315926,1715980277503,-157.0,0.00041096,2]